[Event "Summer Chess Classic-B 2022"]
[Site "Saint Louis"]
[Date "2022.06.06"]
[Round "5.3"]
[White "Dragun, Kamil"]
[Black "Burke, John M"]
[Result "1/2-1/2"]
[ECO "D46"]
[WhiteElo "2571"]
[BlackElo "2579"]
[Annotator "TA"]
[PlyCount "87"]
[EventDate "2022.05.31"]
[EventType "tourn"]
[EventCountry "USA"]
[SourceTitle "playchess.com"]
[Source "ChessBase"]
[SourceQuality "1"]
[TimeControl "40/5400+30:1800+30"]

{[%evp 19,87,0,8,0,4,0,0,0,0,0,0,0,0,0,0,0,9,9,8,0,0,0,25,38,35,33,38,40,50,19,34,0,20,18,33,14,14,12,13,13,13,13,29,9,16,0,0,0,0,0,0,0,0,0,0,0,0,0,0,0,0,0,0,0,0,0,0,0,9,0]} 1. d4 {[%emt 0:00:04]} d5 {[%emt 0:00:07]} 2. c4 {[%emt 0:00:19]} e6 {[%emt 0:00:05]} 3. Nc3 {[%emt 0:00:34]} c6 {[%emt 0:00:17]} 4. e3 {[%emt 0:00:49]} Nf6 {[%emt 0:00:38]} 5. Nf3 {[%emt 0:00:20]} Nbd7 {[%emt 0:00:32]} 6. Qc2 {[%emt 0:00:47]} Bd6 {[%emt 0:01:00]} 7. Bd3 {[%emt 0:00:38]} O-O {[%emt 0:00:56]} 8. O-O {[%emt 0:00:37]} dxc4 {[%emt 0:00:43]} 9. Bxc4 {[%emt 0:00:34]} a6 {[%emt 0:00:33]} 10. Rd1 {[%emt 0:15:29]} b5 {[%emt 0:02:09]} 11. Bd3 {[%emt 0:05:15] D46: Semi-Slav: 5 e3 Nbd7 6 Bd3, Black avoids the Meran.} Bb7 {[%emt 0:01:36]} 12. Ne5 {[%emt 0:13:50]} (12. Ng5 {is more complex.} Bxh2+ 13. Kxh2 Ng4+ 14. Kg1) 12... Rc8 {[%emt 0:11:24]} 13. Nxd7 {[%emt 0:14:04]} Qxd7 {[%emt 0:01:37]} 14. e4 {[%emt 0:00:21]} e5 {[%emt 0:21:13]} 15. Bg5 {[%emt 0:01:07]} exd4 {[%emt 0:09:51] [#] Strongly threatening ...Qe6.} 16. e5 {[%emt 0:03:43]} Bxe5 {[%emt 0:00:45] And now ...Qd6 would win.} (16... dxc3 $2 17. Bf5 (17. exf6 g6 $17) (17. exd6 cxb2 18. Rab1 c5 $16) 17... cxb2 18. Rab1 $18 (18. Bxd7 bxa1=Q 19. Bxf6 Bxe5 $18)) 17. f4 {[%emt 0:00:33]} Bc7 {[%emt 0:10:12] White must now prevent ...Qd6.} 18. Bxf6 {[%emt 0:00:41]} gxf6 {[%emt 0:00:15]} 19. Bxh7+ {[%emt 0:00:28]} Kg7 {[%emt 0:06:59]} 20. Bf5 {[%emt 0:00:41] Prevents Qg4.} Qe7 {[%emt 0:02:57] [#] ...Qe3+ is the strong threat.} 21. Qf2 {[%emt 0:07:38] Qg3+ would kill now.} Qe3 {[%emt 0:05:07]} (21... dxc3 $2 {is a self mate.} 22. Qg3+ Kh8 23. Qh4+ Kg8 24. Qh7#) 22. Qxe3 {[%emt 0:00:48]} ({Don't blunder} 22. Rxd4 $2 Qxf2+ 23. Kxf2 Bb6 $19) 22... dxe3 {[%emt 0:00:03]} 23. Bxc8 {[%emt 0:00:19]} Bxc8 {[%emt 0:01:30]} 24. Ne2 $1 {[%emt 0:00:27]} c5 $1 {[%emt 0:02:32] [#]} ({Resist} 24... Bg4 25. Kf1 $16) 25. b3 $146 {[%emt 0:22:04]} ({Predecessor:} 25. Kf1 Be6 26. Rd3 Rh8 27. h3 Bc4 28. Rc3 Rh4 29. Rxe3 Bxf4 30. Rc3 Be5 31. Rc2 {½-½ (40) Oliveira,M (2171)-Oltean,D (2335) LSS email 2006}) 25... Bg4 {[%emt 0:02:12]} 26. Kf1 {[%emt 0:00:52] next Rac1 is good for White.} Ba5 {[%emt 0:00:11]} 27. h3 {[%emt 0:01:55]} Bxe2+ {[%emt 0:08:49]} 28. Kxe2 $11 {[%emt 0:00:07][%mdl 4096] Endgame aiming for Rd5. KRR-KRB} Bd2 {[%emt 0:00:02]} 29. a4 {[%emt 0:02:13] Threatening axb5.} Rc8 {[%emt 0:05:30]} 30. Ra2 {[%emt 0:00:10]} f5 {[%emt 0:01:45]} 31. Rda1 {[%emt 0:02:49] Threatens to win with axb5.} c4 $1 {[%emt 0:01:11] The position is equal.} 32. bxc4 {[%emt 0:00:23]} (32. Rc2 {with more complications.} Rc6 33. axb5 axb5 34. bxc4 bxc4 35. Ra8) 32... bxc4 {[%emt 0:00:45]} (32... b4 {feels hotter.} 33. Rg1 Rxc4 34. Kf3 b3) 33. Rxd2 {[%emt 0:00:53]} exd2 {[%emt 0:00:03]} 34. Kxd2 {[%emt 0:00:04] KR-KR} Rb8 {[%emt 0:02:30]} 35. Kc3 {[%emt 0:01:57]} a5 {[%emt 0:00:13]} 36. Kxc4 {[%emt 0:00:05]} Rb4+ {[%emt 0:00:03]} 37. Kc5 {[%emt 0:00:05]} Kf6 {[%emt 0:00:18]} 38. g3 {[%emt 0:00:28]} Kg6 {[%emt 0:00:58]} 39. Ra3 {[%emt 0:00:22]} Kf6 {[%emt 0:00:52]} 40. Kd5 {[%emt 0:00:29]} Re4 {[%emt 0:01:03]} 41. Kc6 {[%emt 0:31:52]} Rb4 {[%emt 0:30:42]} 42. Kc5 {[%emt 0:00:07]} Kg6 {[%emt 0:00:00]} 43. Kc6 {[%emt 0:00:00]} Kf6 {[%emt 0:00:00]} 44. Kc5 {[%emt 0:00:00] Weighted Error Value: White=0.03 (flawless) /Black=0.03 (flawless)} 1/2-1/2

[Event "Summer Chess Classic-B 2022"]
[Site "Saint Louis"]
[Date "2022.06.06"]
[Round "5.4"]
[White "Zhou, Jianchao"]
[Black "Yoo, Christopher Woojin"]
[Result "1/2-1/2"]
[ECO "A11"]
[WhiteElo "2589"]
[BlackElo "2535"]
[Annotator "TA"]
[PlyCount "152"]
[EventDate "2022.05.31"]
[EventType "tourn"]
[EventCountry "USA"]
[SourceTitle "playchess.com"]
[Source "ChessBase"]
[SourceQuality "1"]
[TimeControl "40/5400+30:1800+30"]

{[%evp 12,152,11,7,0,0,2,-8,-5,-14,0,-12,-2,-14,-10,-12,-8,-23,-18,-14,-13,-36,-25,-27,0,-7,20,14,20,27,21,17,21,27,24,13,67,32,42,0,33,32,46,47,47,47,58,50,72,53,70,77,79,79,153,93,158,62,136,110,109,102,193,201,185,74,74,81,25,38,25,22,0,7,8,14,6,0,0,0,0,0,0,0,0,0,0,0,0,0,0,0,0,0,0,0,0,0,0,0,0,0,0,0,8,8,8,0,0,0,0,0,0,0,0,0,33,33,33,33,33,33,33,33,33,33,33,33,33,0,33,33,33,0,0,0,0,0,0,0,0,0,6]} 1. Nf3 {[%emt 0:00:32]} d5 {[%emt 0:00:13]} 2. e3 {[%emt 0:00:05]} Nf6 {[%emt 0:00:34]} 3. c4 {[%emt 0:00:13]} c6 {[%emt 0:00:59]} 4. Nc3 {[%emt 0:00:10]} e6 {[%emt 0:00:34]} 5. b3 {[%emt 0:00:43]} Bd6 {[%emt 0:02:39]} 6. Bb2 {[%emt 0:00:39]} O-O {[%emt 0:00:08]} 7. Be2 {[%emt 0:02:18]} b6 {[%emt 0:01:32] Recently 7...e5 got a lot of attention. A11: English Opening: 1...c6.} 8. Qc2 {[%emt 0:06:09]} Bb7 {[%emt 0:04:14]} 9. cxd5 {[%emt 0:01:39]} exd5 {[%emt 0:02:19]} 10. O-O {[%emt 0:02:08]} Nbd7 {[%emt 0:02:04]} 11. d4 {[%emt 0:01:03]} Qe7 {[%emt 0:02:44]} 12. Rac1 {[%emt 0:06:36]} Rfe8 {[%emt 0:09:58]} 13. Rfd1 {[%emt 0:05:15]} Rac8 {[%emt 0:06:29]} 14. Bd3 {[%emt 0:07:49]} Ne4 {[%emt 0:06:18] [#]} 15. Qe2 $146 {[%emt 0:00:34]} ({Predecessor:} 15. Bxe4 dxe4 16. Nd2 f5 17. Nc4 Bb8 18. Ne2 b5 19. Ba3 b4 20. Bb2 Nf6 21. Na5 Bxh2+ 22. Kxh2 {0-1 (59) Souza Filho,N (2116)-Rocha,J (2242) Vitoria 2005}) 15... f5 {[%emt 0:03:40]} 16. Ba6 {[%emt 0:01:39]} Bxa6 {[%emt 0:02:51]} 17. Qxa6 {[%emt 0:00:15][%cal Oc3d5]} Rc7 {[%emt 0:02:17]} 18. Ba3 {[%emt 0:08:11]} Ndf6 {[%emt 0:06:34]} 19. Bxd6 {[%emt 0:03:42]} Qxd6 {[%emt 0:00:07]} 20. Ne5 {[%emt 0:01:42]} Nd7 {[%emt 0:02:51]} 21. f4 {[%emt 0:02:50]} Nxc3 {[%emt 0:04:15]} 22. Rxc3 {[%emt 0:00:18]} Nxe5 {[%emt 0:02:15]} 23. fxe5 {[%emt 0:03:38]} Qh6 {[%emt 0:05:50]} ({Better is} 23... Qe7 $1 $11) 24. Qf1 {[%emt 0:15:14]} Qe6 {[%emt 0:04:49]} 25. Qf3 {[%emt 0:02:28]} Rec8 {[%emt 0:02:32]} 26. h4 {[%emt 0:10:13]} a5 {[%emt 0:04:21]} 27. Rf1 {[%emt 0:03:52]} Rf7 {[%emt 0:01:29]} 28. h5 {[%emt 0:01:43]} c5 {[%emt 0:00:51]} 29. Qf4 {[%emt 0:00:19]} Rc6 {[%emt 0:03:32]} 30. a4 {[%emt 0:01:30]} Rc8 {[%emt 0:01:21]} 31. Rc2 {[%emt 0:05:50]} c4 {[%emt 0:08:17]} 32. Rc3 {[%emt 0:00:38][%cal Bc2c3,Bc3b3,Bb3b1][%mdl 32]} g6 {[%emt 0:00:43]} (32... h6 $142) 33. h6 {[%emt 0:00:21]} (33. Qg5 $142) 33... Rfc7 {[%emt 0:00:48] [#]} (33... Rd7 $142) 34. Rb1 {[%emt 0:02:38]} ({White should try} 34. bxc4 $1 $16 Qe7 35. Qf3) 34... cxb3 {[%emt 0:00:56]} (34... Kf8 $14) 35. Rcxb3 $16 {[%emt 0:00:15]} Rc1+ {[%emt 0:00:09]} 36. Kh2 {[%emt 0:00:15]} Rxb1 {[%emt 0:00:06]} (36... R1c6 $16) 37. Rxb1 {[%emt 0:00:04][%mdl 4096] Endgame KQR-KQR} Kf7 {[%emt 0:01:27]} 38. Qf3 {[%emt 0:01:52]} (38. g4 $18 {is more deadly.}) 38... Ke7 {[%emt 0:00:55]} 39. Kg1 {[%emt 0:02:04]} Kd7 {[%emt 0:02:52]} (39... Ke8 $16) 40. Rb5 {[%emt 0:01:20]} Rc1+ {[%emt 0:00:45]} 41. Kh2 {[%emt 0:31:15]} Kc6 {[%emt 0:30:28]} 42. Qf4 {[%emt 0:00:00][%cal Oe3e4]} Rc3 {[%emt 0:00:00]} 43. Qg5 {[%emt 0:00:00] [#] aiming for Qd8.} Kd7 {[%emt 0:00:00] Inhibits Qd8+.} 44. Qf6 {[%emt 0:00:44]} Qxf6 {[%emt 0:00:00]} 45. exf6 $11 {[%emt 0:00:02] KR-KR} Ke6 {[%emt 0:00:00]} 46. Rxb6+ {[%emt 0:00:23]} Kf7 {[%emt 0:00:00]} 47. Rb7+ {[%emt 0:01:17]} Kxf6 {[%emt 0:00:00]} 48. Rxh7 {[%emt 0:00:04] And now Rd7 would win.} Kg5 {[%emt 0:00:00]} 49. Ra7 {[%emt 0:00:54]} Kxh6 {[%emt 0:00:00]} 50. Rxa5 {[%emt 0:00:05]} Rxe3 {[%emt 0:00:00]} 51. Rxd5 {[%emt 0:00:03]} Ra3 {[%emt 0:00:00]} 52. Ra5 {[%emt 0:01:02]} Rd3 {[%emt 0:00:00]} 53. d5 {[%emt 0:00:54][%cal Bd4d5,Bd5d6][%mdl 32]} Rd4 {[%emt 0:00:00]} 54. Kg3 {[%emt 0:01:02]} Kg5 {[%emt 0:00:00]} 55. Kf3 {[%emt 0:00:06]} Kf6 {[%emt 0:00:00]} 56. Ra6+ {[%emt 0:00:52]} Ke5 {[%emt 0:00:00]} 57. d6 {[%emt 0:00:50]} Rd3+ {[%emt 0:00:00]} 58. Ke2 {[%emt 0:00:14]} Rd5 {[%emt 0:00:00]} (58... Rxd6 59. Rxd6 Kxd6 60. Ke3 Kc5 61. Kf4 Kb4 62. g3 Kxa4 63. Kg5) 59. Rb6 {[%emt 0:00:50] Rb5 is the strong threat.} Ke6 {[%emt 0:00:00]} 60. Ke3 {[%emt 0:00:36][%cal Od6d7]} Ra5 {[%emt 0:00:00]} 61. Rb4 {[%emt 0:00:17]} Kxd6 {[%emt 0:00:00]} 62. Kf4 {[%emt 0:00:06]} Ke6 {[%emt 0:00:00]} 63. Kg5 {[%emt 0:00:18]} Kf7 {[%emt 0:00:00]} 64. Rb7+ {[%emt 0:01:00]} Kg8 {[%emt 0:00:00]} 65. Kxg6 {[%emt 0:00:42][%cal Rb7b8]} Ra6+ {[%emt 0:00:00]} 66. Kxf5 {[%emt 0:00:12] Black must now prevent Rb4.} Rxa4 {[%emt 0:00:00]} 67. Rb6 {[%emt 0:00:28]} Kf7 {[%emt 0:00:00]} 68. g4 {[%emt 0:00:35]} Ra5+ {[%emt 0:00:00]} 69. Kf4 {[%emt 0:00:02]} Kg7 {[%emt 0:00:00]} 70. Kg3 {[%emt 0:00:07]} Rc5 {[%emt 0:00:00]} 71. Kh4 {[%emt 0:00:05]} Ra5 {[%emt 0:00:00]} 72. g5 {[%emt 0:00:12]} Ra1 {[%emt 0:00:00] The position is equal.} 73. Rb7+ {[%emt 0:00:03]} Kg6 {[%emt 0:00:00]} 74. Rb6+ {[%emt 0:00:02]} Kg7 {[%emt 0:00:00]} 75. Rb7+ {[%emt 0:00:02]} Kg6 {[%emt 0:00:00]} 76. Rb6+ {[%emt 0:00:04]} Kg7 {[%emt 0:00:00] Weighted Error Value: White=0.10 (very precise) /Black=0.11 (very precise)} 1/2-1/2

[Event "Summer Chess Classic-B 2022"]
[Site "Saint Louis"]
[Date "2022.06.06"]
[Round "5.5"]
[White "Jacobson, Brandon"]
[Black "Antipov, Mikhail Al."]
[Result "1/2-1/2"]
[ECO "D90"]
[WhiteElo "2526"]
[BlackElo "2592"]
[Annotator "TA"]
[PlyCount "212"]
[EventDate "2022.05.31"]
[EventType "tourn"]
[EventCountry "USA"]
[SourceTitle "playchess.com"]
[Source "ChessBase"]
[SourceQuality "1"]
[TimeControl "40/5400+30:1800+30"]

{[%evp 19,212,0,0,12,21,16,12,16,26,16,29,25,62,35,34,34,37,43,32,21,29,29,36,44,35,24,21,33,208,117,242,246,249,247,250,255,229,212,216,224,214,155,158,144,176,175,175,175,197,197,101,190,176,182,182,182,216,216,208,161,137,79,79,79,79,79,211,211,211,211,211,211,301,300,293,256,291,211,211,0,211,211,461,291,444,291,299,291,291,291,291,211,211,0,266,211,259,252,211,211,211,211,378,211,218,218,218,211,211,211,211,211,211,0,378,0,211,0,301,211,211,85,211,0,211,0,291,0,211,211,211,211,211,211,211,211,211,211,211,112,112,112,112,78,112,112,112,68,71,71,71,71,71,71,71,71,71,71,71,71,71,70,71,71,71,71,70,70,71,71,71,71,71,71,71,71,71,71,71,71,71,71,71,71,71,71,71,71,71,71,71,71,70,70,70]} 1. d4 {[%emt 0:00:04]} Nf6 {[%emt 0:00:03]} 2. c4 {[%emt 0:00:05]} g6 {[%emt 0:00:03]} 3. Nc3 {[%emt 0:00:06]} d5 {[%emt 0:00:02]} 4. Nf3 {[%emt 0:00:10]} Bg7 {[%emt 0:00:03]} 5. Qa4+ {[%emt 0:00:17]} Bd7 {[%emt 0:00:15]} 6. Qb3 {[%emt 0:00:06]} dxc4 {[%emt 0:00:40]} 7. Qxc4 {[%emt 0:00:05]} O-O {[%emt 0:00:12]} 8. Bf4 {[%emt 0:00:12]} c6 {[%emt 0:00:05]} 9. e4 {[%emt 0:01:05]} Qa5 {[%emt 0:01:11]} 10. b4 {[%emt 0:01:05]} Qd8 {[%emt 0:00:36]} 11. a4 {[%emt 0:00:07]} a5 {[%emt 0:17:15]} 12. b5 {[%emt 0:00:55]} Be6 {[%emt 0:00:15]} 13. Qd3 {[%emt 0:00:07]} cxb5 {[%emt 0:02:16]} 14. axb5 {[%emt 0:00:28]} (14. Qxb5 Nc6 15. Rd1 Nb4 $15) 14... Nbd7 {[%emt 0:00:08]} 15. Be2 {[%emt 0:00:05]} Bb3 {[%emt 0:16:12]} 16. h3 {[%emt 0:46:42]} Nh5 {[%emt 0:07:07]} 17. Bh2 {[%emt 0:00:39]} Rc8 {[%emt 0:10:43]} 18. Qe3 {[%emt 0:04:56]} e5 {[%emt 0:14:13]} 19. Nxe5 {[%emt 0:03:13]} Nxe5 {[%emt 0:00:16]} 20. dxe5 {[%emt 0:05:58]} Qe7 $1 {[%emt 0:01:57]} 21. Nd5 {[%emt 0:18:05]} (21. Rxa5 $2 Qb4 22. O-O Rxc3 $19) 21... Bxd5 {[%emt 0:05:33]} 22. exd5 {[%emt 0:00:06]} Qb4+ $1 {[%emt 0:02:56]} 23. Qd2 {[%emt 0:08:32]} Rfe8 $2 {[%emt 0:14:58]} (23... Qxd2+ $1 $14 24. Kxd2 Bh6+ 25. Kd3 Nf4+ 26. Bxf4 Bxf4) 24. f4 {[%emt 0:05:37]} (24. Qxb4 $18 axb4 25. f4) 24... Nxf4 {[%emt 0:01:16]} (24... Qe4 $16 {was necessary.} 25. O-O (25. Rxa5 $2 Qxg2 26. Rf1 Qxh2 $19) 25... Rc2) 25. Bxf4 $18 {[%emt 0:01:38]} Bxe5 {[%emt 0:00:02]} 26. Bxe5 {[%emt 0:00:41]} Rxe5 {[%emt 0:00:02]} 27. Qxb4 {[%emt 0:00:30]} axb4 {[%emt 0:00:01]} 28. Kf2 {[%emt 0:00:06]} Rc2 {[%emt 0:00:03]} 29. Rhe1 $1 {[%emt 0:00:03]} ({Weaker is} 29. Ra8+ Kg7 30. Re1 Rxd5 $11) 29... Rxd5 {[%emt 0:01:13]} 30. Rab1 {[%emt 0:01:00]} Rxb5 {[%emt 0:00:20]} 31. Rb3 {[%emt 0:00:01]} Rf5+ {[%emt 0:03:33]} 32. Kg1 {[%emt 0:00:13]} Re5 {[%emt 0:02:01]} 33. Kf1 {[%emt 0:00:04]} Re4 {[%emt 0:00:40]} 34. Bf3 {[%emt 0:00:35]} Rxe1+ {[%emt 0:00:20]} 35. Kxe1 {[%emt 0:00:02]} Rc4 {[%emt 0:00:10]} 36. Bxb7 {[%emt 0:00:35]} Kg7 {[%emt 0:00:11]} 37. Kd2 {[%emt 0:00:28]} h5 {[%emt 0:00:54]} 38. Ba6 {[%emt 0:01:53]} Rh4 {[%emt 0:01:08]} 39. Bf1 {[%emt 0:02:43]} Rf4 {[%emt 0:00:12]} 40. Be2 {[%emt 0:00:37]} (40. Ke1 $142) 40... Rf2 $16 {[%emt 0:00:53]} 41. g3 {[%emt 0:07:25]} Rh2 {[%emt 0:12:12]} 42. h4 {[%emt 0:00:47]} ({Much weaker is} 42. Rxb4 Rxh3 43. g4 Rh4 $11) 42... Rh3 {[%emt 0:15:22]} (42... f5 $16) 43. Bf1 $18 {[%emt 0:03:31]} ({Don't do} 43. Rxb4 $6 Rxg3 44. Ke1 g5 $14) 43... Rh2+ {[%emt 0:00:03]} 44. Ke3 {[%emt 0:00:07]} Rc2 {[%emt 0:00:03]} 45. Rxb4 {[%emt 0:00:28]} Rc7 {[%emt 0:00:05]} (45... Rc1 $142) 46. Bc4 $18 {[%emt 0:09:18]} Re7+ {[%emt 0:00:12]} 47. Kd4 {[%emt 0:00:05]} Ra7 {[%emt 0:00:24]} 48. Ke5 {[%emt 0:00:16]} Re7+ {[%emt 0:00:24]} 49. Kd4 {[%emt 0:00:20]} Ra7 $1 {[%emt 0:00:03]} 50. Bd5 {[%emt 0:00:03]} Re7 $2 {[%emt 0:01:55]} (50... Ra3 51. Bb3 Ra7) 51. Rb3 {[%emt 0:00:07]} Ra7 {[%emt 0:00:33]} (51... Re1 {keeps fighting.} 52. Rb7 Rd1+ 53. Ke5 Re1+ 54. Kd4 Rf1) 52. Ke5 {[%emt 0:00:07]} Re7+ {[%emt 0:00:30]} 53. Kd6 {[%emt 0:00:05]} Ra7 {[%emt 0:00:02]} 54. Re3 {[%emt 0:00:24]} Ra6+ {[%emt 0:00:28]} 55. Ke7 {[%emt 0:01:34]} Ra5 {[%emt 0:00:14]} 56. Kd6 {[%emt 0:03:23]} Ra6+ {[%emt 0:00:16]} 57. Bc6 {[%emt 0:00:02]} Ra7 {[%emt 0:00:11]} 58. Bb5 {[%emt 0:04:54]} Ra5 {[%emt 0:00:29]} 59. Bd3 {[%emt 0:00:21]} Ra3 {[%emt 0:00:25]} 60. Rf3 {[%emt 0:00:30]} Rc3 $2 {[%emt 0:01:56]} (60... Ra4 {might work better.} 61. Bb5 Rd4+ 62. Ke5 Rd1) 61. Ke5 {[%emt 0:00:09]} (61. Be4 $142 Rc1 62. Bd5) 61... Ra3 {[%emt 0:00:06]} 62. Be4 {[%emt 0:00:22]} Ra7 {[%emt 0:00:12]} 63. Rb3 {[%emt 0:01:07]} Re7+ {[%emt 0:00:08]} 64. Kd4 {[%emt 0:00:05]} Ra7 {[%emt 0:00:03]} 65. Bb7 {[%emt 0:00:04]} Ra5 {[%emt 0:00:09]} 66. Bd5 $2 {[%emt 0:00:10]} (66. Ke3) 66... Ra7 $1 $18 {[%emt 0:00:08]} 67. Ke5 {[%emt 0:00:05]} (67. Rb7 $142 Rxb7 68. Bxb7) 67... Re7+ $1 $18 {[%emt 0:00:23] [#]} 68. Kd6 {[%emt 0:00:01]} (68. Kf4 $142 $1) 68... Ra7 $1 $18 {[%emt 0:00:04]} 69. Bb7 {[%emt 0:00:04]} Kf8 {[%emt 0:00:23]} 70. Kd7 {[%emt 0:00:51]} (70. Bf3 $18 {has better winning chances.}) 70... Ra5 {[%emt 0:00:10]} (70... Kg7 $16 71. Kd6 f6) 71. Kd6 {[%emt 0:04:17]} Ra7 $1 {[%emt 0:00:10]} 72. Bd5 {[%emt 0:01:11]} Kg7 $1 {[%emt 0:00:06]} 73. Ke5 {[%emt 0:00:04]} Re7+ $1 {[%emt 0:00:04] [#]} 74. Kf4 $1 {[%emt 0:00:02]} Rd7 {[%emt 0:00:07]} 75. Rd3 {[%emt 0:00:14]} Ra7 {[%emt 0:00:16]} 76. Rd4 {[%emt 0:00:02]} Rd7 {[%emt 0:00:07]} 77. Rd1 {[%emt 0:00:46]} Ra7 {[%emt 0:00:06]} 78. Rc1 {[%emt 0:00:03]} Re7 {[%emt 0:00:06]} 79. g4 {[%emt 0:00:09]} (79. Rb1 $18) 79... hxg4 $16 {[%emt 0:00:06]} 80. Kxg4 {[%emt 0:00:03]} Rd7 {[%emt 0:00:07]} 81. Rc5 {[%emt 0:00:20]} Re7 {[%emt 0:00:05]} 82. Bf3 {[%emt 0:00:15]} Ra7 {[%emt 0:00:05]} 83. h5 {[%emt 0:00:11]} gxh5+ {[%emt 0:00:08]} 84. Rxh5 {[%emt 0:00:05]} Ra4+ {[%emt 0:00:03]} 85. Kg3 {[%emt 0:00:05]} Rd4 {[%emt 0:00:05]} 86. Re5 {[%emt 0:00:06]} Rd6 {[%emt 0:00:08]} 87. Bd5 {[%emt 0:00:13]} Rf6 {[%emt 0:00:12]} 88. Kg4 {[%emt 0:00:48]} Kf8 {[%emt 0:00:21]} 89. Bc4 {[%emt 0:00:12]} Kg7 {[%emt 0:00:05]} 90. Bd3 {[%emt 0:00:32]} Kf8 {[%emt 0:00:09]} 91. Bf5 {[%emt 0:00:11]} Kg7 {[%emt 0:00:08]} 92. Re7 {[%emt 0:00:04]} Rb6 {[%emt 0:00:08]} 93. Ra7 {[%emt 0:00:08]} Rd6 {[%emt 0:00:21]} 94. Kf4 {[%emt 0:00:04]} Rb6 {[%emt 0:00:03]} 95. Be4 {[%emt 0:00:05]} Rf6+ {[%emt 0:00:05]} 96. Ke5 {[%emt 0:00:03]} Re6+ {[%emt 0:00:03]} 97. Kd4 {[%emt 0:00:04]} Rf6 {[%emt 0:00:06]} 98. Bd5 {[%emt 0:00:03]} Rf4+ {[%emt 0:00:08]} 99. Ke5 {[%emt 0:00:08]} Rf1 {[%emt 0:00:06]} 100. Kd6 {[%emt 0:00:11]} Rf6+ {[%emt 0:00:18]} 101. Kd7 {[%emt 0:00:09]} Rf5 {[%emt 0:00:05]} 102. Ra5 {[%emt 0:00:22]} Re5 {[%emt 0:00:10]} 103. Kd6 {[%emt 0:00:07]} Rf5 {[%emt 0:00:04]} 104. Ra1 {[%emt 0:00:04]} Rf2 {[%emt 0:00:36]} 105. Bc4 {[%emt 0:00:08]} Rf4 {[%emt 0:00:32]} 106. Rc1 $1 {[%emt 0:00:04]} Kf8 {[%emt 0:00:13]} 1/2-1/2

[Event "Summer Chess Classic-B 2022"]
[Site "Saint Louis"]
[Date "2022.06.07"]
[Round "6.1"]
[White "Harutyunyan, Tigran K."]
[Black "Antipov, Mikhail Al."]
[Result "0-1"]
[ECO "B36"]
[WhiteElo "2550"]
[BlackElo "2592"]
[Annotator "TA"]
[PlyCount "74"]
[EventDate "2022.05.31"]
[EventType "tourn"]
[EventCountry "USA"]
[SourceTitle "playchess.com"]
[Source "ChessBase"]
[SourceQuality "1"]
[TimeControl "40/5400+30:1800+30"]

{[%evp 18,74,41,32,35,31,25,30,48,9,14,6,19,0,0,0,0,0,0,-3,0,-29,-16,-14,-22,-14,-26,-25,-15,-27,-23,-29,-37,-66,-60,-54,-64,-148,-137,-140,-144,-304,-298,-297,-280,-293,-293,-279,-283,-486,-498,-754,-748,-12838,-997,-688,-693,-29991,-29992]} 1. Nf3 {[%emt 0:00:04]} Nf6 {[%emt 0:00:09]} 2. c4 {[%emt 0:00:16]} g6 {[%emt 0:00:03]} 3. Nc3 {[%emt 0:00:16]} c5 {[%emt 0:00:30]} 4. e4 {[%emt 0:00:25]} Nc6 {[%emt 0:00:09]} 5. d4 {[%emt 0:00:09]} cxd4 {[%emt 0:00:03]} 6. Nxd4 {[%emt 0:00:08]} d6 {[%emt 0:00:03]} 7. Be2 {[%emt 0:00:44]} Nxd4 {[%emt 0:00:04]} 8. Qxd4 {[%emt 0:00:08]} Bg7 {[%emt 0:00:01]} 9. Be3 {[%emt 0:00:30]} O-O {[%emt 0:00:05]} 10. Qd2 {[%emt 0:00:23]} a5 {[%emt 0:00:05] B36: Sicilian: Maroczy Bind: Gurgenidze System.} 11. f3 {[%emt 0:04:43]} a4 {[%emt 0:00:24]} 12. Rb1 {[%emt 0:08:38]} Be6 {[%emt 0:00:59] White has an edge.} 13. Nb5 {[%emt 0:03:12]} Nd7 {[%emt 0:09:32]} 14. O-O {[%emt 0:10:06]} Qa5 {[%emt 0:01:35]} 15. Qxa5 {[%emt 0:13:25]} Rxa5 {[%emt 0:00:03]} 16. Nc7 {[%emt 0:00:38]} Rc8 {[%emt 0:16:01]} 17. Nxe6 {[%emt 0:11:07]} fxe6 {[%emt 0:00:11]} 18. f4 {[%emt 0:01:38]} Nf6 {[%emt 0:09:21] [#]} 19. e5 $146 {[%emt 0:08:01]} ({Predecessor:} 19. Rfe1 h5 20. Bd2 Raa8 21. Bd3 Ng4 22. e5 Kf7 23. Bc3 Re8 24. Be4 Rac8 25. Bxb7 Rxc4 {1-0 (36) Pourramezanali,A (2538)-Pilvaieh,A (2152) Bandar e Anzali 2018}) 19... dxe5 {[%emt 0:02:17]} 20. Bd2 {[%emt 0:02:55]} Raa8 {[%emt 0:17:38]} 21. fxe5 {[%emt 0:00:15]} Nd7 {[%emt 0:00:32][%cal Bf6d7,Bd7e5,Be5f7,Bf7h6][%mdl 32]} 22. Bg5 {[%emt 0:16:35]} Nxe5 {[%emt 0:09:29]} 23. b3 {[%emt 0:00:05]} axb3 {[%emt 0:02:07]} 24. axb3 {[%emt 0:00:07]} Ra2 {[%emt 0:01:11]} 25. Rbe1 {[%emt 0:01:39]} Nf7 {[%emt 0:14:52]} 26. Bxe7 {[%emt 0:00:15]} Bc3 {[%emt 0:00:09]} 27. Bg4 {[%emt 0:01:26]} ({White should play} 27. Bf3 $15 Bxe1 28. Rxe1) 27... Bxe1 $17 {[%emt 0:00:07]} 28. Rxe1 {[%emt 0:00:47]} Re8 $1 {[%emt 0:02:14]} 29. Rxe6 {[%emt 0:01:56] Now White is beyond hope.} (29. Bf6 $17) 29... Nh6 $19 {[%emt 0:07:31]} 30. Bf3 {[%emt 0:00:51]} Ra1+ $1 {[%emt 0:00:32]} ({Worse is} 30... Kf7 {[#]} 31. Bd5 $1 Raa8 32. Kf2 $1 $11) 31. Kf2 {[%emt 0:00:02]} Kf7 $1 {[%emt 0:00:45][%csl LRe6,LRe7]} 32. Bd5 {[%emt 0:00:54]} Rd1 {[%emt 0:00:06]} ({Less strong is} 32... Ng4+ 33. Kg3 Rxe7 34. Re1+ Kf6 35. Rxa1 $16) 33. Rb6+ $2 {[%emt 0:04:20]} (33. Re5+ {keeps fighting.} Rxd5 34. Rxd5 Rxe7 35. Kf3) 33... Kxe7 {[%emt 0:00:47]} 34. Rxb7+ {[%emt 0:00:18]} (34. Ke2 $142 Rb1 35. Kd3) 34... Kf6 {[%emt 0:00:09] ...Rd2+ is the strong threat.} 35. Rxh7 {[%emt 0:00:20]} Ng4+ {[%emt 0:00:19]} (35... Rd2+ $142 36. Kg3 Nf5+ 37. Kh3 Re3+ 38. Bf3 Rxb3) 36. Kg3 {[%emt 0:00:06]} Re3+ {[%emt 0:02:46]} 37. Kh4 {[%emt 0:00:17]} Ne5 {[%emt 0:00:30] Inhibits Rf7+.  Weighted Error Value: White=0.89/Black=0.29 (precise)} 0-1